fUSD/lending_fUSD_20240805
["ID","MTS","AMOUNT","RATE_DAILY","PERIOD"]
[334216984,1722843978640,-186.04829547,0.00042344,30]
[334216985,1722843978686,-150.0,0.00042344,30]
[334216986,1722843978732,-215.0,0.0004238,30]
[334216987,1722843978786,-202.0,0.0004238,30]
[334216988,1722843978843,-202.0,0.0004238,30]
[334216989,1722843978893,-215.0,0.0004238,30]
[334216990,1722843978945,-215.0,0.0004238,30]
[334216991,1722843979001,-150.0,0.00042387,30]
[334216992,1722843979056,-186.04829547,0.00042388,30]
[334216993,1722843979107,-204.0,0.000424,30]
[334216994,1722843979156,-1000.0,0.00042418,30]
[334216995,1722843979206,-150.0,0.00042421,30]
[334216996,1722843979260,-186.04829547,0.00042432,30]
[334216997,1722843979314,-150.0,0.00042451,30]
[334216998,1722843979364,-2579.47310837,0.00042452,60]
[334216999,1722843979414,-150.0,0.00042456,30]
[334217000,1722843979465,-1000.0,0.00042473,120]
[334217001,1722843979516,-186.04829547,0.00042477,30]
[334217002,1722843979565,-150.0,0.00042477,120]
[334217003,1722843979614,-1000.0,0.00042498,30]
[334217004,1722843979661,-1000.0,0.000425,30]
[334217005,1722843979708,-2110.0,0.000425,30]
[334217006,1722843979755,-203056.05358589,0.000425,50]
[334217007,1722843979802,-150.0,0.00042516,30]
[334217008,1722843979853,-186.04829547,0.00042521,30]
[334217009,1722843979900,-186.04829547,0.00042565,30]
[334217010,1722843979948,-1000.0,0.00042577,30]
[334217011,1722843980004,-150.0,0.0004258,30]
[334217012,1722843980055,-186.04829547,0.00042609,30]
[334217013,1722843980106,-150.0,0.00042609,30]
[334217014,1722843980153,-150.0,0.00042625,30]
[334217015,1722843980200,-150.0,0.00042644,30]
[334217016,1722843980253,-150.0,0.00042651,30]
[334217017,1722843980301,-186.04829547,0.00042654,30]
[334217018,1722843980350,-1000.0,0.00042657,30]
[334217019,1722843980401,-186.04829547,0.00042698,30]
[334217020,1722843980456,-500.0,0.00042708,30]
[334217021,1722843980507,-500.0,0.00042708,30]
[334217022,1722843980556,-150.0,0.00042709,30]
[334217023,1722843980607,-150.0,0.00042709,30]
[334217024,1722843980663,-150.0,0.00042709,30]
[334217025,1722843980715,-342.4,0.00042717,120]
[334217026,1722843980767,-1000.0,0.00042737,30]
[334217027,1722843980819,-185.41111111,0.0004274,120]
[334217028,1722843980867,-186.04829547,0.00042742,30]
[334217029,1722843980913,-150.0,0.00042773,30]
[334217030,1722843980962,-186.04829547,0.00042786,30]
[334217031,1722843981010,-150.0,0.00042793,30]
[334217032,1722843981060,-1016.03092776,0.00042798,120]
[334217033,1722843981111,-202.69535177,0.00042798,90]
[334217034,1722843981164,-268.84365321,0.00042798,90]
[334217035,1722843981212,-1000.0,0.000428,30]
[334217036,1722843981259,-6418.6267,0.000428,60]
[334217037,1722843981306,-52487.52531836,0.000428,60]
[334217038,1722843981355,-125614.57496253,0.000428,60]
[334217039,1722843981408,-10358.27329182,0.000428,60]
[334217040,1722843981458,-499999.0,0.000428,60]
[334217041,1722843981506,-101987.9111533,0.000428,60]
[334217042,1722843981552,-1256.40504423,0.000428,60]
[334217043,1722843981601,-499999.0,0.000428,60]
[334217044,1722843981649,-499999.0,0.000428,60]
[334217045,1722843981698,-42087.7166218,0.000428,60]
[334217046,1722843981753,-21789.43155041,0.000428,60]
[334217047,1722843981802,-74707.48862404,0.000428,60]
[334217048,1722843982088,-1000.0,0.00042816,30]
[334217049,1722843982135,-186.04829547,0.00042831,30]
[334217050,1722843982185,-150.0,0.00042838,30]
[334217051,1722843982234,-1166.09,0.00042849,120]
[334217052,1722843982285,-1306.71,0.00042849,120]
[334217053,1722843982332,-186.04829547,0.00042875,30]
[334217054,1722843982382,-245948.93754,0.0004288,60]
[334217055,1722843982435,-150.0,0.00042882,30]
[334217056,1722843982485,-1000.0,0.00042896,30]
[334217057,1722843982545,-409.0,0.00042896,120]
[334217058,1722843982593,-1032.06399938,0.000429,120]
[334217059,1722843982643,-150.2430063,0.000429,120]
[334217060,1722843982694,-150.0,0.00042902,30]
[334217061,1722843982743,-186.04829547,0.00042919,30]
[334217062,1722843982806,-3455.4,0.00042943,94]
[334217063,1722843982858,-150.0,0.00042962,30]
[334217064,1722843982911,-186.04829547,0.00042963,30]
[334217065,1722843982972,-150.0,0.00042967,30]
[334217066,1722843983023,-1000.0,0.00042975,30]
[334217067,1722843983086,-2739.0,0.00042978,62]
[334217068,1722843983145,-399.9037887,0.00042998,120]
[334217069,1722843983205,-50000.0,0.00043,33]
[334217070,1722843983263,-50000.0,0.00043,43]
[334217071,1722843983307,-2019.5,0.00043,120]
[334217072,1722843983352,-2894.06547358,0.00043,30]
[334217073,1722843983399,-697.0,0.00043,60]
[334217074,1722843983445,-2987.05555463,0.00043,60]
[334217075,1722843983491,-1422.87359404,0.00043,120]
[334217076,1722843983547,-300.26707384,0.00043,120]
[334217077,1722843983593,-458.25325001,0.00043,30]
[334217078,1722843983640,-2000.0,0.00043,120]
[334217079,1722843983687,-9689.0,0.00043,120]
[334217080,1722843983735,-4280.0,0.00043,120]
[334217081,1722843983795,-3712.0,0.00043,120]
[334217082,1722843983845,-302.2,0.00043,120]
[334217083,1722843983896,-2700.0,0.00043,120]
[334217084,1722843983948,-150.0,0.00043,90]
[334217085,1722843984004,-3064.15,0.00043,120]
[334217086,1722843984056,-1790.476162,0.00043,30]
[334217087,1722843984108,-1980430.88361136,0.00043,30]
[334217088,1722843984160,-1371.60495248,0.00043,60]
[334217089,1722843984212,-2110.0,0.00043,30]
[334217090,1722843984260,-833.32825527,0.00043,120]
[334217091,1722843984310,-2565.32817337,0.00043,120]
[334217092,1722843984361,-155.0,0.00043,120]
[334217093,1722843984411,-2995.53572623,0.00043,120]
[334217094,1722843984463,-433.08059891,0.00043,120]
[334217095,1722843984510,-483.46595439,0.00043,30]
[334217096,1722843984558,-866075.03650679,0.00043,30]
[334217097,1722843984608,-186.04829547,0.00043008,30]
[334217098,1722843984654,-150.0,0.00043008,30]
[334217099,1722843984706,-185.11,0.00043014,120]
[334217100,1722843984760,-157.080515,0.00043018,119]
[334217101,1722843984811,-166.080515,0.00043018,119]
[334217102,1722843984864,-150.0,0.00043031,30]
[334217103,1722843984916,-157.080515,0.00043048,119]
[334217104,1722843984969,-186.04829547,0.00043052,30]
[334217105,1722843985020,-1000.0,0.00043055,30]
[334217106,1722843985084,-151.0,0.00043068,120]
[334217107,1722843985136,-150.0,0.00043069,120]
[334217108,1722843985186,-150.0,0.00043074,30]
[334217109,1722843985237,-662.02025,0.00043088,30]
[334217110,1722843985300,-150.0,0.00043092,120]
[334217111,1722843985352,-150.0,0.00043095,30]
[334217112,1722843985403,-150.0,0.00043096,120]
[334217113,1722843985456,-186.04829547,0.00043096,30]
[334217114,1722843985509,-1000.0,0.000431,30]
[334217115,1722843985558,-150.0,0.00043112,30]
[334217116,1722843985610,-150.0,0.00043128,120]
[334217117,1722843985658,-2412.86763618,0.0004313,120]
[334217118,1722843985705,-2578.67469388,0.0004313,120]
[334217119,1722843985756,-1109.18233938,0.0004313,120]
[334217120,1722843985806,-3333.04072908,0.0004313,120]
[334217121,1722843985852,-19415.84425419,0.0004313,120]
[334217122,1722843985902,-150.0,0.0004313,30]
[334217123,1722843985949,-1000.0,0.00043135,30]
[334217124,1722843985996,-186.04829547,0.0004314,30]
[334217125,1722843986049,-157.080509,0.00043148,119]
[334217126,1722843986100,-157.080509,0.00043148,119]
[334217127,1722843986149,-157.080509,0.00043148,119]
[334217128,1722843986200,-157.080509,0.00043148,119]
[334217129,1722843986248,-157.080511,0.00043148,119]
[334217130,1722843986309,-150.0,0.0004316,30]
[334217131,1722843986358,-186.04829547,0.00043185,30]
[334217132,1722843986406,-20000.0,0.000432,30]
[334217133,1722843986454,-1000.0,0.00043214,30]
[334217134,1722843986501,-150.0,0.00043224,30]
[334217135,1722843986547,-186.04829547,0.00043229,30]
[334217136,1722843986591,-150.0,0.00043232,120]
[334217137,1722843986636,-1500.34,0.00043233,120]
[334217138,1722843986685,-2866.36739794,0.0004325,30]
[334217139,1722843986731,-500.0,0.00043256,30]
[334217140,1722843986780,-500.0,0.00043256,30]
[334217141,1722843986830,-186.04829547,0.00043273,30]
[334217142,1722843986877,-662.02025,0.00043288,30]
[334217143,1722843986925,-150.0,0.00043289,30]
[334217144,1722843986974,-1000.0,0.00043294,30]
[334217145,1722843987022,-150.0,0.00043299,30]
[334217146,1722843987076,-186.04829547,0.00043317,30]
[334217147,1722843987129,-202.03404446,0.0004333,120]
[334217148,1722843987181,-200.0,0.00043333,120]
[334217149,1722843987228,-2000.88,0.00043333,120]
[334217150,1722843987278,-150.0,0.00043343,30]
[334217151,1722843987559,-150.0,0.00043353,30]
[334217152,1722843987611,-186.04829547,0.00043362,30]
[334217153,1722843987665,-1166.09,0.00043369,120]
[334217154,1722843987716,-1306.71,0.00043369,120]
[334217155,1722843987771,-1000.0,0.00043374,30]
[334217156,1722843987826,-186.04829547,0.00043406,30]
[334217157,1722843987881,-150.0,0.00043406,30]
[334217158,1722843987937,-150.0,0.00043417,30]
[334217159,1722843987995,-186.04829547,0.0004345,30]
[334217160,1722843988061,-150.0,0.00043453,120]
[334217161,1722843988114,-1000.0,0.00043453,30]
[334217162,1722843988171,-150.0,0.00043467,30]
[334217163,1722843988228,-150.0,0.00043482,30]
[334217164,1722843988282,-662.02025,0.00043488,30]
[334217165,1722843988338,-186.04829547,0.00043494,30]
[334217166,1722843988395,-8500.006,0.000435,50]
[334217167,1722843988450,-2110.0,0.000435,30]
[334217168,1722843988508,-1000.0,0.00043533,30]
[334217169,1722843988559,-186.04829547,0.00043539,30]
[334217170,1722843988615,-150.0,0.00043546,30]
[334217171,1722843988672,-150.0,0.00043573,30]
[334217172,1722843988728,-186.04829547,0.00043583,30]
[334217173,1722843988786,-185.41111111,0.00043589,120]
[334217174,1722843988842,-1000.0,0.00043607,120]
[334217175,1722843988898,-150.0,0.00043611,30]
[334217176,1722843988955,-1000.0,0.00043613,30]
[334217177,1722843989012,-186.04829547,0.00043627,30]
[334217178,1722843989068,-150.0,0.00043636,30]
[334217179,1722843989122,-150.0,0.00043671,120]
[334217180,1722843989177,-186.04829547,0.00043671,30]
[334217181,1722843989232,-150.0,0.00043675,30]
[334217182,1722843989287,-662.02025,0.00043688,30]
[334217183,1722843989345,-1000.0,0.00043692,30]
[334217184,1722843989398,-409.0,0.00043696,120]
[334217185,1722843989454,-2225.64373137,0.000437,120]
[334217186,1722843989512,-2327.10563115,0.000437,60]
[334217187,1722843989571,-150.0,0.00043715,120]
[334217188,1722843989627,-186.04829547,0.00043716,30]
[334217189,1722843989689,-150.0,0.0004374,30]
[334217190,1722843989751,-186.04829547,0.0004376,30]
[334217191,1722843989806,-1000.0,0.00043772,30]
[334217192,1722843989843,-465.53071102,0.000438,30]
[334217193,1722843989880,-1000.85618727,0.000438,120]
[334217194,1722843989918,-1080.99997746,0.000438,111]
[334217195,1722843989960,-204.0,0.000438,30]
[334217196,1722843989999,-215.0,0.000438,30]
[334217197,1722843990049,-202.0,0.000438,30]
[334217198,1722843990093,-201.0,0.000438,30]
[334217199,1722843990134,-201.0,0.000438,30]
[334217200,1722843990181,-201.0,0.000438,30]
[334217201,1722843990220,-202.0,0.000438,30]
[334217202,1722843990264,-200.0,0.000438,30]
[334217203,1722843990307,-202.0,0.000438,30]
[334217204,1722843990346,-200.0,0.000438,30]
[334217205,1722843990387,-202.0,0.000438,30]
[334217206,1722843990425,-200.0,0.000438,30]
[334217207,1722843990464,-200.0,0.000438,30]
[334217208,1722843990511,-202.0,0.000438,30]
[334217209,1722843990551,-201.0,0.000438,30]
[334217210,1722843990589,-215.0,0.000438,30]
[334217211,1722843990628,-202.0,0.000438,30]
[334217212,1722843990667,-214.0,0.000438,30]
[334217213,1722843990705,-200.0,0.000438,30]
[334217214,1722843990744,-202.0,0.000438,30]
[334217215,1722843990790,-215.0,0.000438,30]
[334217216,1722843990830,-215.0,0.000438,30]
[334217217,1722843990868,-215.0,0.000438,30]
[334217218,1722843990904,-215.0,0.000438,30]
[334217219,1722843990942,-275.0,0.000438,30]
[334217220,1722843990980,-150.0,0.00043802,120]
[334217221,1722843991017,-500.0,0.00043804,30]
[334217222,1722843991053,-457.94384127,0.00043804,30]
[334217223,1722843991091,-186.04829547,0.00043804,30]
[334217224,1722843991126,-242.82292599,0.00043804,30]
[334217225,1722843991161,-272.11393738,0.00043804,30]
[334217226,1722843991197,-189.8791984,0.00043804,30]
[334217227,1722843991233,-187.34270313,0.00043804,30]
[334217228,1722843991269,-264.37724266,0.00043804,30]
[334217229,1722843991304,-155.45412893,0.00043804,30]
[334217230,1722843991339,-161.85517771,0.00043804,30]
[334217231,1722843991376,-217.38113146,0.00043804,30]
[334217232,1722843991413,-240.26169714,0.00043804,30]
[334217233,1722843991452,-1416.27,0.00043835,120]
[334217234,1722843991488,-1416.27,0.00043835,120]
[334217235,1722843991528,-1416.27,0.00043835,120]
[334217236,1722843991569,-1416.27,0.00043835,120]
[334217237,1722843991619,-1416.27,0.00043835,120]
[334217238,1722843991658,-1416.27,0.00043835,120]
[334217239,1722843991696,-1416.27,0.00043835,120]
[334217240,1722843991733,-1416.27,0.00043835,120]
[334217241,1722843991768,-1416.27,0.00043835,120]
[334217242,1722843991803,-1416.27,0.00043835,120]
[334217243,1722843991839,-1416.27,0.00043835,120]
[334217244,1722843991873,-1416.27,0.00043835,120]
[334217245,1722843991908,-1416.27,0.00043835,120]
[334217246,1722843991945,-1416.27,0.00043835,120]
[334217247,1722843991980,-1416.27,0.00043835,120]
[334217248,1722843992016,-1416.27,0.00043835,120]
[334217249,1722843992053,-1416.27,0.00043835,120]
[334217250,1722843992088,-1416.27,0.00043835,120]
[334217251,1722843992124,-1416.27,0.00043835,120]
[334217252,1722843992162,-1416.27,0.00043835,120]
[334217253,1722843992200,-1416.27,0.00043835,120]
[334217254,1722843992239,-1416.27,0.00043835,120]
[334217255,1722843992510,-1416.27,0.00043835,120]
[334217256,1722843992545,-1416.3632521,0.00043835,120]
[334217257,1722843992581,-1250.0,0.00043835,120]
[334217258,1722843992616,-500.0,0.00043835,60]
[334217259,1722843992651,-500.0,0.00043835,60]
[334217260,1722843992687,-500.0,0.00043835,60]
[334217261,1722843992721,-500.0,0.00043835,60]
[334217262,1722843992769,-4905.833523,0.00043835,60]
[334217263,1722843992806,-500.0,0.00043835,60]
[334217264,1722843992841,-357.32708379,0.00043835,60]
[334217265,1722843992877,-500.0,0.00043835,60]
[334217266,1722843992912,-308.81866847,0.00043835,30]
[334217267,1722843992948,-500.0,0.00043835,60]
[334217268,1722843992984,-500.0,0.00043835,60]
[334217269,1722843993021,-500.0,0.00043835,60]
[334217270,1722843993059,-500.0,0.00043835,60]
[334217271,1722843993099,-500.0,0.00043835,60]
[334217272,1722843993134,-500.0,0.00043835,60]
[334217273,1722843993171,-500.0,0.00043835,60]
[334217274,1722843993205,-500.0,0.00043835,60]
[334217275,1722843993240,-500.0,0.00043835,60]
[334217276,1722843993285,-306.08964703,0.00043835,60]
[334217277,1722843993321,-500.0,0.00043835,60]
[334217278,1722843993357,-500.0,0.00043835,60]
[334217279,1722843993393,-500.0,0.00043835,60]
[334217280,1722843993431,-568.9543034,0.00043835,60]
[334217281,1722843993467,-500.0,0.00043835,60]
[334217282,1722843993502,-500.0,0.00043835,60]
[334217283,1722843993544,-500.0,0.00043835,60]
[334217284,1722843993581,-500.0,0.00043835,60]
[334217285,1722843993618,-500.0,0.00043835,60]
[334217286,1722843993655,-500.0,0.00043835,60]
[334217287,1722843993694,-501.79312009,0.00043835,60]
[334217288,1722843993730,-501.04029485,0.00043835,60]
[334217289,1722843993768,-500.0,0.00043835,60]
[334217290,1722843993807,-500.0,0.00043835,60]
[334217291,1722843993846,-500.0,0.00043835,60]
[334217292,1722843993884,-528.10076738,0.00043835,60]
[334217293,1722843993922,-500.0,0.00043835,60]
[334217294,1722843993961,-500.0,0.00043835,60]
[334217295,1722843993998,-500.0,0.00043835,60]
[334217296,1722843994042,-500.0,0.00043835,60]
[334217297,1722843994079,-153.92795265,0.00043835,60]
[334217298,1722843994116,-500.0,0.00043835,60]
[334217299,1722843994154,-500.0,0.00043835,60]
[334217300,1722843994191,-500.0,0.00043835,60]
[334217301,1722843994229,-622.52832947,0.00043835,60]
[334217302,1722843994268,-500.0,0.00043835,60]
[334217303,1722843994305,-500.0,0.00043835,60]
[334217304,1722843994342,-500.0,0.00043835,60]
[334217305,1722843994379,-500.0,0.00043835,60]
[334217306,1722843994420,-500.0,0.00043835,60]
[334217307,1722843994462,-500.0,0.00043835,60]
[334217308,1722843994498,-500.0,0.00043835,60]
[334217309,1722843994541,-500.0,0.00043835,60]
[334217310,1722843994577,-500.0,0.00043835,60]
[334217311,1722843994613,-500.0,0.00043835,60]
[334217312,1722843994648,-500.0,0.00043835,60]
[334217313,1722843994686,-500.0,0.00043835,60]
[334217314,1722843994724,-500.0,0.00043835,60]
[334217315,1722843994767,-500.0,0.00043835,60]
[334217316,1722843994803,-500.0,0.00043835,60]
[334217317,1722843994839,-500.26553512,0.00043835,60]
[334217318,1722843994873,-500.0,0.00043835,60]
[334217319,1722843994909,-500.0,0.00043835,60]
[334217320,1722843994944,-500.0,0.00043835,60]
[334217321,1722843994979,-500.0,0.00043835,60]
[334217322,1722843995015,-500.0,0.00043835,60]
[334217323,1722843995050,-500.39758293,0.00043835,60]
[334217324,1722843995085,-500.0,0.00043835,60]
[334217325,1722843995120,-500.0,0.00043835,60]
[334217326,1722843995155,-500.0,0.00043835,60]
[334217327,1722843995189,-500.0,0.00043835,60]
[334217328,1722843995222,-500.0,0.00043835,60]
[334217329,1722843995258,-500.0,0.00043835,60]
[334217330,1722843995293,-500.0,0.00043835,60]
[334217331,1722843995329,-500.0,0.00043835,60]
[334217332,1722843995367,-500.0,0.00043835,60]
[334217333,1722843995403,-500.0,0.00043835,60]
[334217334,1722843995440,-500.0,0.00043835,60]
[334217335,1722843995476,-500.0,0.00043835,60]
[334217336,1722843995518,-500.0,0.00043835,60]
[334217337,1722843995552,-500.0,0.00043835,60]
[334217338,1722843995585,-500.0,0.00043835,60]
[334217339,1722843995620,-500.0,0.00043835,60]
[334217340,1722843995655,-500.0,0.00043835,60]
[334217341,1722843995689,-455.9614962,0.00043835,60]
[334217342,1722843995725,-500.0,0.00043835,60]
[334217343,1722843995771,-310.71583663,0.00043835,60]
[334217344,1722843995809,-500.0,0.00043835,60]
[334217345,1722843995845,-500.0,0.00043835,60]
[334217346,1722843995882,-500.69795803,0.00043835,60]
[334217347,1722843995920,-500.0,0.00043835,60]
[334217348,1722843995960,-388.03124719,0.00043835,60]
[334217349,1722843995997,-500.0,0.00043835,60]
[334217350,1722843996040,-500.0,0.00043835,60]
[334217351,1722843996079,-501.02854351,0.00043835,60]
[334217352,1722843996115,-500.0,0.00043835,60]
[334217353,1722843996153,-500.0,0.00043835,60]
[334217354,1722843996189,-500.33572712,0.00043835,60]
[334217355,1722843996224,-500.0,0.00043835,60]
[334217356,1722843996263,-500.20333522,0.00043835,60]
[334217357,1722843996299,-500.0,0.00043835,60]
[334217358,1722843996335,-500.0,0.00043835,60]
[334217359,1722843996371,-500.0,0.00043835,60]
[334217360,1722843996408,-202.58533426,0.00043835,60]
[334217361,1722843996698,-500.0,0.00043835,60]
[334217362,1722843996734,-500.0,0.00043835,60]
[334217363,1722843996769,-500.0,0.00043835,60]
[334217364,1722843996806,-500.0,0.00043835,60]
[334217365,1722843996842,-500.0,0.00043835,60]
[334217366,1722843996877,-500.0,0.00043835,60]
[334217367,1722843996913,-500.0,0.00043835,60]
[334217368,1722843996949,-500.0,0.00043835,60]
[334217369,1722843996985,-500.0,0.00043835,60]
[334217370,1722843997020,-500.0,0.00043835,60]
[334217371,1722843997058,-500.0,0.00043835,60]
[334217372,1722843997094,-500.0,0.00043835,60]
[334217373,1722843997130,-500.0,0.00043835,60]
[334217374,1722843997165,-500.0,0.00043835,60]
[334217375,1722843997201,-500.0,0.00043835,60]
[334217376,1722843997239,-500.0,0.00043835,60]
[334217377,1722843997276,-500.16334404,0.00043835,60]
[334217378,1722843997312,-641.11513814,0.00043835,60]
[334217379,1722843997349,-500.0,0.00043835,60]
[334217380,1722843997386,-271.71194064,0.00043835,60]
[334217381,1722843997424,-500.0,0.00043835,60]
[334217382,1722843997460,-500.0,0.00043835,60]
[334217383,1722843997495,-500.0,0.00043835,60]
[334217384,1722843997536,-500.0,0.00043835,60]
[334217385,1722843997572,-500.0,0.00043835,60]
[334217386,1722843997607,-500.0,0.00043835,60]
[334217387,1722843997642,-525.5,0.00043835,60]
[334217388,1722843997676,-500.0,0.00043835,60]
[334217389,1722843997712,-500.0,0.00043835,60]
[334217390,1722843997747,-500.0,0.00043835,60]
[334217391,1722843997786,-1079.81,0.00043835,60]
[334217392,1722843997821,-500.0,0.00043835,60]
[334217393,1722843997856,-500.0,0.00043835,60]
[334217394,1722843997892,-500.0,0.00043835,60]
[334217395,1722843997927,-500.0,0.00043835,60]
[334217396,1722843997963,-500.0,0.00043835,60]
[334217397,1722843997999,-500.0,0.00043835,60]
[334217398,1722843998042,-353.20267651,0.00043835,60]
[334217399,1722843998079,-500.0,0.00043835,60]
[334217400,1722843998116,-500.46142749,0.00043835,60]
[334217401,1722843998157,-162.57981246,0.00043835,60]
[334217402,1722843998193,-965.1,0.00043835,60]
[334217403,1722843998230,-514.31,0.00043835,60]
[334217404,1722843998269,-500.0,0.00043835,60]
[334217405,1722843998306,-500.0,0.00043835,60]
[334217406,1722843998342,-500.0,0.00043835,60]
[334217407,1722843998377,-500.0,0.00043835,60]
[334217408,1722843998413,-500.0,0.00043835,60]
[334217409,1722843998447,-500.0,0.00043835,60]
[334217410,1722843998482,-500.0,0.00043835,60]
[334217411,1722843998517,-574.58170719,0.00043835,60]
[334217412,1722843998551,-500.0,0.00043835,60]
[334217413,1722843998585,-500.0,0.00043835,60]
[334217414,1722843998620,-500.0,0.00043835,60]
[334217415,1722843998653,-665.03,0.00043835,60]
[334217416,1722843998688,-500.0,0.00043835,60]
[334217417,1722843998722,-1099.51,0.00043835,60]
[334217418,1722843998756,-500.0,0.00043835,60]
[334217419,1722843998797,-500.0,0.00043835,60]
[334217420,1722843998831,-1235.78,0.00043835,60]
[334217421,1722843998867,-500.0,0.00043835,60]
[334217422,1722843998903,-500.0,0.00043835,60]
[334217423,1722843998937,-500.0,0.00043835,60]
[334217424,1722843998972,-500.0,0.00043835,60]
[334217425,1722843999006,-500.0,0.00043835,60]
[334217426,1722843999044,-634.87,0.00043835,60]
[334217427,1722843999080,-500.0,0.00043835,60]
[334217428,1722843999114,-645.01,0.00043835,60]
[334217429,1722843999150,-531.86,0.00043835,60]
[334217430,1722843999184,-3063.03,0.00043835,60]
[334217431,1722843999217,-500.0,0.00043835,60]
[334217432,1722843999251,-2292.05,0.00043835,60]
[334217433,1722843999290,-500.0,0.00043835,60]
[334217434,1722843999325,-500.0,0.00043835,60]
[334217435,1722843999359,-500.0,0.00043835,60]
[334217436,1722843999392,-500.0,0.00043835,60]
[334217437,1722843999426,-500.0,0.00043835,60]
[334217438,1722843999461,-500.0,0.00043835,60]
[334217439,1722843999494,-1479.31,0.00043835,60]
[334217440,1722843999533,-151.57924492,0.00043835,60]
[334217441,1722843999566,-500.0,0.00043835,60]
[334217442,1722843999598,-500.0,0.00043835,60]
[334217443,1722843999631,-1046.58,0.00043835,60]
[334217444,1722843999664,-500.0,0.00043835,60]
[334217445,1722843999696,-500.0,0.00043835,60]
[334217446,1722843999729,-660.02,0.00043835,60]
[334217447,1722843999765,-500.0,0.00043835,60]
[334217448,1722843999801,-872.75,0.00043835,60]
[334217449,1722843999835,-500.38845459,0.00043835,60]
[334217450,1722843999870,-500.0,0.00043835,60]
[334217451,1722843999904,-500.0,0.00043835,60]
[334217452,1722843999940,-378.97158536,0.00043835,60]
[334217453,1722843999983,-500.0,0.00043835,60]
[334217454,1722844000024,-500.0,0.00043835,60]
[334217455,1722844000069,-1517.27,0.00043835,60]
[334217456,1722844000110,-594.44,0.00043835,60]
[334217457,1722844000150,-500.0,0.00043835,60]
[334217458,1722844000186,-500.0,0.00043835,60]
[334217459,1722844000222,-250.52009258,0.00043835,60]
[334217460,1722844000258,-1942.65,0.00043835,60]
[334217461,1722844000299,-500.0,0.00043835,60]
[334217462,1722844000336,-1605.08,0.00043835,60]
[334217463,1722844000371,-500.0,0.00043835,60]
[334217464,1722844000406,-500.0,0.00043835,60]
[334217465,1722844000440,-500.0,0.00043835,60]
[334217466,1722844000701,-992.56,0.00043835,60]
[334217467,1722844000738,-500.0,0.00043835,60]
[334217468,1722844000774,-500.0,0.00043835,60]
[334217469,1722844000810,-1503.6,0.00043835,60]
[334217470,1722844000845,-500.0,0.00043835,60]
[334217471,1722844000880,-500.0,0.00043835,60]
[334217472,1722844000914,-500.0,0.00043835,60]
[334217473,1722844000950,-500.0,0.00043835,60]
[334217474,1722844000985,-500.0,0.00043835,60]
[334217475,1722844001021,-500.0,0.00043835,60]
[334217476,1722844001056,-500.0,0.00043835,60]
[334217477,1722844001095,-507.29455238,0.00043835,60]
[334217478,1722844001129,-500.0,0.00043835,60]
[334217479,1722844001164,-1930.09,0.00043835,60]
[334217480,1722844001200,-500.0,0.00043835,60]
[334217481,1722844001235,-716.52,0.00043835,60]
[334217482,1722844001272,-500.0,0.00043835,60]
[334217483,1722844001309,-500.0,0.00043835,60]